[Event "NJSK 2024 C"]
[Site "Groningen, Netherlands"]
[Date "2024.05.01"]
[Round "7.11"]
[White "Koppenens, Oscar"]
[Black "De Wit, Evan"]
[Result "1-0"]
[TimeControl "90min/40moves + 30min + 30sec/move"]
[WhiteElo "1893"]
[BlackElo "1769"]

1. e4 {[%clk 01:30:58]} {[%emt 00:00:02]} c5 {[%clk 01:30:55]} {[%emt
00:00:06]} 2. Nf3 {[%clk 01:31:24]} {[%emt 00:00:02]} Nc6 {[%clk 01:31:22]}
{[%emt 00:00:04]} 3. d4 {[%clk 01:31:44]} {[%emt 00:00:10]} cxd4 {[%clk
01:31:43]} {[%emt 00:00:10]} 4. Nxd4 {[%clk 01:32:11]} {[%emt 00:00:02]} Nf6
{[%clk 01:32:04]} {[%emt 00:00:08]} 5. Nc3 {[%clk 01:32:38]} {[%emt 00:00:05]}
e5 {[%clk 01:32:27]} {[%emt 00:00:05]} 6. Ndb5 {[%clk 01:33:05]} {[%emt
00:00:03]} d6 {[%clk 01:32:50]} {[%emt 00:00:08]} 7. Bg5 {[%clk 01:33:22]}
{[%emt 00:00:12]} a6 {[%clk 01:33:17]} {[%emt 00:00:04]} 8. Na3 {[%clk
01:33:48]} {[%emt 00:00:04]} b5 {[%clk 01:33:42]} {[%emt 00:00:05]} 9. Nd5
{[%clk 01:34:15]} {[%emt 00:00:03]} Be7 {[%clk 01:34:05]} {[%emt 00:00:06]} 10.
Bxf6 {[%clk 01:34:39]} {[%emt 00:00:07]} Bxf6 {[%clk 01:34:30]} {[%emt
00:00:05]} 11. c3 {[%clk 01:35:03]} {[%emt 00:00:06]} Bg5 {[%clk 01:34:55]}
{[%emt 00:00:04]} 12. Nc2 {[%clk 01:34:54]} {[%emt 00:00:39]} O-O {[%clk
01:35:18]} {[%emt 00:00:08]} 13. h4 {[%clk 01:32:28]} {[%emt 00:02:56]} Bh6
{[%clk 01:35:28]} {[%emt 00:00:20]} 14. g3 {[%clk 01:27:34]} {[%emt 00:05:23]}
Be6 {[%clk 01:35:29]} {[%emt 00:00:29]} 15. Nce3 {[%clk 01:26:12]} {[%emt
00:01:52]} Rb8 {[%clk 01:35:40]} {[%emt 00:00:19]} 16. Bg2 {[%clk 01:25:03]}
{[%emt 00:01:39]} b4 {[%clk 01:35:29]} {[%emt 00:00:42]} 17. O-O {[%clk
01:25:12]} {[%emt 00:00:21]} bxc3 {[%clk 01:35:37]} {[%emt 00:00:21]} 18. bxc3
{[%clk 01:25:37]} {[%emt 00:00:06]} Qa5 {[%clk 01:34:07]} {[%emt 00:02:00]} 19.
Nc4 {[%clk 01:24:15]} {[%emt 00:01:52]} Qc5 {[%clk 01:31:38]} {[%emt 00:02:58]}
20. Nxd6 {[%clk 01:23:09]} {[%emt 00:01:37]} Rfd8 {[%clk 01:28:11]} {[%emt
00:03:56]} 21. Nf5 {[%clk 01:23:23]} {[%emt 00:00:15]} Bxf5 {[%clk 01:27:07]}
{[%emt 00:01:34]} 22. exf5 {[%clk 01:23:47]} {[%emt 00:00:07]} Rb5 {[%clk
01:21:36]} {[%emt 00:06:02]} 23. Qg4 {[%clk 01:21:14]} {[%emt 00:03:02]} Rb2
{[%clk 01:10:48]} {[%emt 00:11:14]} 24. Rad1 {[%clk 01:17:11]} {[%emt
00:04:37]} Kh8 {[%clk 01:07:34]} {[%emt 00:03:44]} 25. f6 {[%clk 01:16:37]}
{[%emt 00:01:05]} g6 {[%clk 01:07:09]} {[%emt 00:00:55]} 26. Nb4 {[%clk
01:05:12]} {[%emt 00:11:54]} Rxd1 {[%clk 01:01:32]} {[%emt 00:06:07]} 27. Qxd1
{[%clk 01:05:29]} {[%emt 00:00:12]} Nxb4 {[%clk 01:00:59]} {[%emt 00:01:04]} 28.
cxb4 {[%clk 01:05:54]} {[%emt 00:00:06]} Qxb4 {[%clk 01:00:22]} {[%emt
00:01:07]} 29. Qd5 {[%clk 01:03:53]} {[%emt 00:02:31]} Qf8 {[%clk 00:55:49]}
{[%emt 00:05:04]} 30. Qxe5 {[%clk 01:02:37]} {[%emt 00:01:46]} Rb5 {[%clk
00:52:46]} {[%emt 00:03:32]} 31. Qc7 {[%clk 01:00:32]} {[%emt 00:02:33]} Rc5
{[%clk 00:48:02]} {[%emt 00:05:16]} 32. Qb6 {[%clk 00:56:37]} {[%emt 00:04:25]}
Rc1 {[%clk 00:38:51]} {[%emt 00:09:40]} 33. Qxa6 {[%clk 00:56:15]} {[%emt
00:00:53]} Rxf1+ {[%clk 00:39:09]} {[%emt 00:00:12]} 34. Qxf1 {[%clk 00:56:26]}
{[%emt 00:00:19]} Qd8 {[%clk 00:39:08]} {[%emt 00:00:31]} 35. Qe2 {[%clk
00:56:41]} {[%emt 00:00:15]} Qxf6 {[%clk 00:38:39]} {[%emt 00:00:58]} 36. Bd5
{[%clk 00:55:46]} {[%emt 00:01:27]} Kg7 {[%clk 00:36:24]} {[%emt 00:02:43]} 37.
Qe8 {[%clk 00:55:36]} {[%emt 00:00:40]} Bd2 {[%clk 00:35:46]} {[%emt 00:01:08]}
38. a4 {[%clk 00:55:46]} {[%emt 00:00:21]} Bc3 {[%clk 00:35:33]} {[%emt
00:00:43]} 39. Qe2 {[%clk 00:52:49]} {[%emt 00:03:27]} Qd4 {[%clk 00:34:58]}
{[%emt 00:01:04]} 40. Qf3 {[%clk 00:51:36]} {[%emt 00:01:44]} Qf6 {[%clk
00:35:14]} {[%emt 00:00:14]} 41. Qd3 {[%clk 00:51:09]} {[%emt 00:00:57]} Be1
{[%emt 00:04:23]} 42. Qe2 {[%clk 00:48:52]} {[%emt 00:00:11]} Bc3 {[%clk
00:34:13]} {[%emt 00:00:14]} 43. Kg2 {[%clk 00:49:15]} {[%emt 00:00:06]} Qd4
{[%clk 00:34:11]} {[%emt 00:00:34]} 44. Qa2 {[%clk 00:48:53]} {[%emt 00:00:49]}
Qa7 {[%clk 00:33:58]} {[%emt 00:00:46]} 45. Qc4 {[%clk 00:48:10]} {[%emt
00:01:13]} Qd4 {[%clk 00:29:43]} {[%emt 00:04:44]} 46. Qb3 {[%clk 00:46:55]}
{[%emt 00:01:43]} Qb4 {[%clk 00:29:18]} {[%emt 00:00:56]} 47. Qa2 {[%clk
00:47:01]} {[%emt 00:00:24]} Qb2 {[%clk 00:28:38]} {[%emt 00:01:10]} 48. Bxf7
{[%clk 00:46:21]} {[%emt 00:01:11]} Qxa2 {[%clk 00:28:59]} {[%emt 00:00:09]} 49.
Bxa2 {[%clk 00:46:49]} {[%emt 00:00:03]} h6 {[%clk 00:29:10]} {[%emt 00:00:18]}
50. Kf3 {[%clk 00:46:55]} {[%emt 00:00:23]} Kf6 {[%clk 00:28:46]} {[%emt
00:00:55]} 51. Ke3 {[%clk 00:46:44]} {[%emt 00:00:40]} g5 {[%clk 00:28:01]}
{[%emt 00:01:16]} 52. h5 {[%clk 00:46:53]} {[%emt 00:00:21]} Ke5 {[%clk
00:27:18]} {[%emt 00:01:13]} 53. f4+ {[%clk 00:46:54]} {[%emt 00:00:29]} gxf4+
{[%clk 00:26:45]} {[%emt 00:01:03]} 54. gxf4+ {[%clk 00:47:12]} {[%emt
00:00:12]} Kd6 {[%clk 00:25:52]} {[%emt 00:01:23]} 55. Ke4 {[%clk 00:46:53]}
{[%emt 00:00:50]} Bd2 {[%clk 00:22:17]} {[%emt 00:04:05]} 56. Bc4 {[%clk
00:46:22]} {[%emt 00:01:00]} Bc3 {[%clk 00:21:35]} {[%emt 00:01:12]} 57. Kf5
{[%emt 00:02:01]} Bd2 {[%clk 00:21:21]} 58. Bd3 {[%clk 00:45:11]} {[%emt
00:00:51]} Kd5 {[%clk 00:19:48]} {[%emt 00:02:06]} 59. Be4+ {[%clk 00:45:16]}
{[%emt 00:00:25]} Kd6 {[%clk 00:19:47]} {[%emt 00:00:30]} 60. Bc2 {[%clk
00:44:57]} {[%emt 00:00:49]} Ke7 {[%clk 00:19:38]} {[%emt 00:00:40]} 61. Ke5
{[%clk 00:45:18]} {[%emt 00:00:08]} Bc3+ {[%clk 00:19:34]} {[%emt 00:00:35]} 62.
Kd5 {[%clk 00:44:18]} {[%emt 00:01:30]} Kd7 {[%clk 00:18:53]} {[%emt 00:01:12]}
63. Bf5+ {[%clk 00:44:09]} {[%emt 00:00:39]} Kc7 {[%clk 00:18:33]} {[%emt
00:00:49]} 64. Bg4 {[%clk 00:43:32]} {[%emt 00:01:06]} Bd2 {[%clk 00:17:42]}
{[%emt 00:01:21]} 65. Ke5 {[%clk 00:43:58]} {[%emt 00:00:04]} Kd8 {[%clk
00:18:02]} {[%emt 00:00:10]} 66. f5 {[%clk 00:44:09]} {[%emt 00:00:20]} Ke8
{[%clk 00:15:53]} {[%emt 00:02:37]} 67. Kf6 {[%clk 00:43:37]} {[%emt 00:01:01]}
Kf8 {[%clk 00:10:44]} {[%emt 00:05:40]} 68. Be2 {[%clk 00:43:50]} {[%emt
00:00:16]} Bg5+ {[%clk 00:09:45]} {[%emt 00:01:29]} 69. Kg6 {[%clk 00:44:04]}
{[%emt 00:00:15]} Bd2 {[%clk 00:09:24]} {[%emt 00:00:53]} 70. Bc4 {[%clk
00:44:19]} {[%emt 00:00:15]} Ke7 {[%clk 00:09:04]} {[%emt 00:00:50]} 71. f6+
{[%clk 00:44:11]} {[%emt 00:00:38]} Ke8 {[%clk 00:07:24]} {[%emt 00:02:10]} 72.
f7+ {[%clk 00:42:51]} {[%emt 00:01:51]} Kf8 {[%clk 00:07:22]} {[%emt 00:00:31]}
73. Bb3 {[%clk 00:42:19]} {[%emt 00:01:02]} Bc3 {[%clk 00:05:13]} {[%emt
00:02:39]} 74. Kxh6 {[%clk 00:42:43]} {[%emt 00:00:06]} Ba5 {[%clk 00:03:51]}
{[%emt 00:01:51]} 75. Kg6 {[%clk 00:43:04]} {[%emt 00:00:10]} Bc3 {[%clk
00:03:45]} {[%emt 00:00:36]} 76. h6 {[%clk 00:43:25]} {[%emt 00:00:09]} Bf6
{[%clk 00:03:49]} {[%emt 00:00:26]} 77. h7 {[%clk 00:43:30]} {[%emt 00:00:25]}
1-0

[Event "NJSK 2024 C"]
[Site "Groningen, Netherlands"]
[Date "2024.05.01"]
[Round "7.12"]
[White "Kors, Siebe"]
[Black "Etienne, Ghilon"]
[Result "0-1"]
[TimeControl "90min/40moves + 30min + 30sec/move"]
[WhiteElo "1668"]
[BlackElo "1793"]

1. e4 {[%clk 01:30:58]} {[%emt 00:00:01]} e5 {[%clk 01:30:57]} {[%emt
00:00:04]} 2. Nf3 {[%clk 01:31:23]} {[%emt 00:00:04]} Nc6 {[%clk 01:31:25]}
{[%emt 00:00:03]} 3. d4 {[%clk 01:31:28]} {[%emt 00:00:24]} exd4 {[%clk
01:31:52]} {[%emt 00:00:04]} 4. Nxd4 {[%clk 01:31:47]} {[%emt 00:00:10]} Bc5
{[%clk 01:32:18]} {[%emt 00:00:04]} 5. Nxc6 {[%clk 01:28:16]} {[%emt 00:04:01]}
bxc6 {[%clk 01:32:43]} {[%emt 00:00:06]} 6. Bc4 {[%clk 01:27:00]} {[%emt
00:01:45]} d6 {[%clk 01:31:44]} {[%emt 00:01:29]} 7. O-O {[%clk 01:23:21]}
{[%emt 00:04:09]} Nf6 {[%clk 01:31:53]} {[%emt 00:00:22]} 8. Nd2 {[%clk
01:19:25]} {[%emt 00:04:25]} O-O {[%clk 01:31:57]} {[%emt 00:00:26]} 9. h3
{[%clk 01:18:56]} {[%emt 00:00:59]} d5 {[%clk 01:32:20]} {[%emt 00:00:08]} 10.
exd5 {[%clk 01:17:21]} {[%emt 00:02:04]} cxd5 {[%clk 01:32:45]} {[%emt
00:00:05]} 11. Bb5 {[%clk 01:14:49]} {[%emt 00:03:01]} Bd7 {[%clk 01:32:25]}
{[%emt 00:00:51]} 12. Bxd7 {[%clk 01:13:22]} {[%emt 00:01:57]} Qxd7 {[%clk
01:32:10]} {[%emt 00:00:46]} 13. Nb3 {[%clk 01:12:44]} {[%emt 00:01:08]} Bb6
{[%clk 01:32:34]} {[%emt 00:00:06]} 14. Re1 {[%clk 01:08:02]} {[%emt 00:05:11]}
Rfe8 {[%clk 01:32:31]} {[%emt 00:00:33]} 15. Bf4 {[%clk 01:03:56]} {[%emt
00:04:35]} Rxe1+ {[%clk 01:32:29]} {[%emt 00:00:34]} 16. Qxe1 {[%clk 01:04:05]}
{[%emt 00:00:20]} Re8 {[%clk 01:32:56]} {[%emt 00:00:03]} 17. Qb4 {[%clk
00:54:48]} {[%emt 00:09:47]} Ne4 {[%clk 01:30:04]} {[%emt 00:03:22]} 18. Rf1
{[%clk 00:45:03]} {[%emt 00:10:15]} c5 {[%clk 01:24:57]} {[%emt 00:05:37]} 19.
Qa3 {[%clk 00:44:08]} {[%emt 00:01:24]} c4 {[%clk 01:23:46]} {[%emt 00:01:42]}
20. Nd2 {[%clk 00:37:45]} {[%emt 00:06:52]} Nxf2 {[%clk 01:22:03]} {[%emt
00:02:14]} 21. Rxf2 {[%clk 00:31:43]} {[%emt 00:06:32]} Re2 {[%clk 01:22:27]}
{[%emt 00:00:06]} 22. Bg3 {[%clk 00:23:42]} {[%emt 00:08:31]} Rxd2 {[%clk
01:22:36]} {[%emt 00:00:21]} 23. Qb4 {[%clk 00:23:43]} {[%emt 00:00:29]} Bxf2+
{[%clk 01:21:26]} {[%emt 00:01:40]} 24. Bxf2 {[%clk 00:23:12]} {[%emt
00:00:29]} Rd1+ {[%clk 01:21:41]} {[%emt 00:00:47]} 25. Kh2 {[%clk 00:22:49]}
{[%emt 00:00:52]} Qc7+ {[%clk 01:21:56]} {[%emt 00:00:15]} 26. g3 {[%clk
00:22:04]} {[%emt 00:01:16]} h6 {[%clk 01:19:33]} {[%emt 00:02:53]} 27. Kg2
{[%clk 00:21:02]} {[%emt 00:01:32]} d4 {[%clk 01:18:20]} {[%emt 00:01:43]} 28.
b3 {[%clk 00:20:23]} {[%emt 00:01:09]} Qc6+ {[%clk 01:18:38]} {[%emt 00:00:12]}
0-1

[Event "NJSK 2024 C"]
[Site "Groningen, Netherlands"]
[Date "2024.05.01"]
[Round "7.13"]
[White "Van Haaften, Jelle"]
[Black "Haque, Nishaaz"]
[Result "1-0"]
[TimeControl "90min/40moves + 30min + 30sec/move"]
[WhiteElo "1655"]
[BlackElo "1803"]

1. e4 {[%clk 01:30:58]} {[%emt 00:00:02]} c5 {[%clk 01:30:54]} {[%emt
00:00:07]} 2. c4 {[%clk 01:31:23]} {[%emt 00:00:04]} d6 {[%clk 01:30:46]}
{[%emt 00:00:39]} 3. Nc3 {[%clk 01:31:43]} {[%emt 00:00:09]} Nc6 {[%clk
01:31:11]} {[%emt 00:00:06]} 4. g3 {[%clk 01:32:08]} {[%emt 00:00:05]} g6
{[%clk 01:31:38]} {[%emt 00:00:03]} 5. Nge2 {[%clk 01:32:32]} {[%emt 00:00:06]}
Bg7 {[%clk 01:32:02]} {[%emt 00:00:06]} 6. Bg2 {[%clk 01:32:56]} {[%emt
00:00:04]} e5 {[%clk 01:32:28]} {[%emt 00:00:04]} 7. d3 {[%clk 01:33:22]}
{[%emt 00:00:05]} Nge7 {[%clk 01:32:55]} {[%emt 00:00:03]} 8. O-O {[%clk
01:33:41]} {[%emt 00:00:11]} O-O {[%clk 01:33:21]} {[%emt 00:00:05]} 9. f4
{[%clk 01:33:36]} {[%emt 00:00:34]} f5 {[%clk 01:30:57]} {[%emt 00:02:55]} 10.
Bd2 {[%clk 01:28:43]} {[%emt 00:05:22]} Bd7 {[%clk 01:29:02]} {[%emt 00:02:24]}
11. a3 {[%emt 00:07:36]} a6 {[%clk 01:24:37]} 12. Qc2 {[%clk 01:21:07]} {[%emt
00:05:54]} Qc7 {[%clk 01:24:24]} {[%emt 00:00:45]} 13. Nd5 {[%clk 01:19:55]}
{[%emt 00:01:42]} Nxd5 {[%clk 01:21:53]} {[%emt 00:03:02]} 14. cxd5 {[%clk
01:20:11]} {[%emt 00:00:13]} Ne7 {[%clk 01:21:40]} {[%emt 00:00:43]} 15. fxe5
{[%clk 01:15:07]} {[%emt 00:05:33]} dxe5 {[%emt 00:10:54]} 16. b4 {[%clk
01:11:30]} {[%emt 00:01:52]} b6 {[%clk 01:12:27]} {[%emt 00:01:35]} 17. Rac1
{[%clk 01:09:18]} {[%emt 00:02:42]} Rfc8 {[%clk 01:12:41]} {[%emt 00:00:15]} 18.
bxc5 {[%clk 01:07:49]} {[%emt 00:02:00]} Qxc5+ {[%clk 01:11:45]} {[%emt
00:01:26]} 19. Qxc5 {[%clk 01:07:02]} {[%emt 00:01:16]} bxc5 {[%clk 01:09:17]}
{[%emt 00:02:59]} 20. d6 {[%clk 01:03:03]} {[%emt 00:04:28]} Nc6 {[%clk
01:09:13]} {[%emt 00:00:35]} 21. Rxc5 {[%clk 01:00:45]} {[%emt 00:02:49]} Bf8
{[%clk 01:08:56]} {[%emt 00:00:46]} 22. Rfc1 {[%clk 00:57:50]} {[%emt
00:03:25]} Nd4 {[%clk 01:03:17]} {[%emt 00:06:08]} 23. Nxd4 {[%clk 00:55:06]}
{[%emt 00:03:14]} Rxc5 {[%clk 01:03:14]} {[%emt 00:00:34]} 24. Rxc5 {[%clk
00:55:05]} {[%emt 00:00:30]} exd4 {[%clk 01:03:39]} {[%emt 00:00:06]} 25. e5
{[%clk 00:54:08]} {[%emt 00:01:27]} Re8 {[%clk 01:02:33]} {[%emt 00:01:36]} 26.
Bf4 {[%clk 00:52:21]} {[%emt 00:02:16]} h6 {[%clk 00:58:15]} {[%emt 00:04:49]}
27. h4 {[%clk 00:52:43]} {[%emt 00:00:08]} Bg7 {[%clk 00:55:21]} {[%emt
00:03:23]} 28. Rc7 {[%clk 00:50:19]} {[%emt 00:02:55]} Be6 {[%clk 00:51:54]}
{[%emt 00:03:57]} 29. Bd5 {[%clk 00:42:40]} {[%emt 00:08:10]} Bxd5 {[%clk
00:52:02]} {[%emt 00:00:21]} 30. d7 {[%clk 00:43:02]} {[%emt 00:00:08]} Rd8
{[%clk 00:52:27]} {[%emt 00:00:05]} 31. Rc8 {[%clk 00:43:23]} {[%emt 00:00:09]}
Kf7 {[%clk 00:52:55]} {[%emt 00:00:02]} 32. Rxd8 {[%clk 00:43:35]} {[%emt
00:00:18]} Ke7 {[%clk 00:53:21]} {[%emt 00:00:03]} 33. Rb8 {[%clk 00:42:49]}
{[%emt 00:01:17]} Kxd7 {[%clk 00:53:32]} {[%emt 00:00:19]} 34. Rb6 {[%clk
00:43:07]} {[%emt 00:00:10]} g5 {[%clk 00:53:10]} {[%emt 00:00:52]} 35. Rd6+
{[%clk 00:42:23]} {[%emt 00:01:16]} Ke7 {[%clk 00:53:21]} {[%emt 00:00:18]} 36.
hxg5 {[%clk 00:42:19]} {[%emt 00:00:35]} 1-0

[Event "NJSK 2024 C"]
[Site "Groningen, Netherlands"]
[Date "2024.05.02"]
[Round "8.1"]
[White "Kurt, Sascha"]
[Black "Groenewoud, Joel"]
[Result "0-1"]
[TimeControl "90min/40moves + 30min + 30sec/move"]
[WhiteElo "2096"]
[BlackElo "2030"]

1. e4 {[%clk 01:30:54]} {[%emt 00:00:05]} c6 {[%clk 01:30:57]} {[%emt
00:00:04]} 2. d4 {[%clk 01:31:19]} {[%emt 00:00:03]} d5 {[%clk 01:31:24]}
{[%emt 00:00:04]} 3. exd5 {[%clk 01:31:35]} {[%emt 00:00:15]} cxd5 {[%clk
01:31:49]} {[%emt 00:00:05]} 4. c4 {[%clk 01:32:00]} {[%emt 00:00:04]} Nf6
{[%clk 01:32:15]} {[%emt 00:00:05]} 5. Nc3 {[%clk 01:32:20]} {[%emt 00:00:09]}
g6 {[%clk 01:32:41]} {[%emt 00:00:04]} 6. cxd5 {[%clk 01:31:43]} {[%emt
00:01:07]} Bg7 {[%clk 01:33:02]} {[%emt 00:00:09]} 7. Nf3 {[%clk 01:30:13]}
{[%emt 00:02:00]} Nxd5 {[%clk 01:32:49]} {[%emt 00:00:43]} 8. Bc4 {[%clk
01:30:20]} {[%emt 00:00:22]} Nxc3 {[%clk 01:32:01]} {[%emt 00:01:18]} 9. bxc3
{[%clk 01:30:46]} {[%emt 00:00:05]} O-O {[%clk 01:31:56]} {[%emt 00:00:35]} 10.
O-O {[%clk 01:30:52]} {[%emt 00:00:24]} Qc7 {[%clk 01:28:43]} {[%emt 00:03:43]}
11. Qb3 {[%clk 01:28:51]} {[%emt 00:02:31]} Nc6 {[%clk 01:26:22]} {[%emt
00:02:51]} 12. Ng5 {[%clk 01:26:53]} {[%emt 00:02:28]} e6 {[%clk 01:24:40]}
{[%emt 00:02:12]} 13. Bd3 {[%clk 01:25:14]} {[%emt 00:02:07]} b6 {[%clk
01:22:43]} {[%emt 00:02:29]} 14. Be3 {[%clk 01:05:03]} {[%emt 00:20:41]} Bb7
{[%emt 00:07:11]} 15. f4 {[%clk 01:00:08]} Rac8 {[%clk 01:16:03]} {[%emt
00:05:53]} 16. Rac1 {[%clk 00:59:25]} {[%emt 00:01:14]} Na5 {[%clk 01:10:33]}
{[%emt 00:06:00]} 17. Qc2 {[%clk 00:56:15]} {[%emt 00:03:38]} Nc4 {[%clk
01:09:33]} {[%emt 00:01:32]} 18. Bd2 {[%clk 00:54:50]} {[%emt 00:01:55]} Ba6
{[%clk 01:00:34]} {[%emt 00:09:28]} 19. Bxc4 {[%clk 00:53:45]} {[%emt
00:01:36]} Bxc4 {[%clk 01:00:32]} {[%emt 00:00:32]} 20. Rf2 {[%clk 00:52:35]}
{[%emt 00:01:38]} Bd5 {[%clk 00:57:39]} {[%emt 00:03:25]} 21. Qa4 {[%clk
00:51:17]} {[%emt 00:01:48]} Qb7 {[%clk 00:53:52]} {[%emt 00:04:17]} 22. Rb1
{[%clk 00:46:22]} {[%emt 00:05:25]} Rc4 {[%clk 00:52:48]} {[%emt 00:01:33]} 23.
Qb5 {[%clk 00:44:55]} {[%emt 00:01:58]} Rb8 {[%clk 00:48:13]} {[%emt 00:05:04]}
24. Nf3 {[%clk 00:40:45]} {[%emt 00:04:41]} a6 {[%clk 00:42:43]} {[%emt
00:05:59]} 25. Qb2 {[%clk 00:40:48]} {[%emt 00:00:27]} Ra4 {[%clk 00:33:06]}
{[%emt 00:10:07]} 26. a3 {[%clk 00:39:08]} {[%emt 00:02:11]} Bf8 {[%clk
00:29:10]} {[%emt 00:04:26]} 27. Ra1 {[%clk 00:39:29]} {[%emt 00:00:10]} Qe7
{[%clk 00:26:30]} {[%emt 00:03:09]} 28. Bc1 {[%clk 00:39:21]} {[%emt 00:00:38]}
Bxf3 {[%clk 00:21:44]} {[%emt 00:05:15]} 29. Rxf3 {[%clk 00:39:44]} {[%emt
00:00:07]} b5 {[%clk 00:21:45]} {[%emt 00:00:30]} 30. Qb3 {[%clk 00:38:26]}
{[%emt 00:01:47]} Rc8 {[%clk 00:20:54]} {[%emt 00:01:21]} 31. Bb2 {[%clk
00:37:08]} {[%emt 00:01:49]} Qc7 {[%clk 00:19:06]} {[%emt 00:02:17]} 32. Qd1
{[%clk 00:33:31]} {[%emt 00:04:08]} Bd6 {[%clk 00:16:44]} {[%emt 00:02:52]} 33.
g3 {[%clk 00:33:10]} {[%emt 00:00:51]} Qc4 {[%clk 00:14:26]} {[%emt 00:02:47]}
34. Kg2 {[%clk 00:31:22]} {[%emt 00:02:18]} Qd5 {[%clk 00:14:40]} {[%emt
00:00:17]} 35. h3 {[%clk 00:29:24]} {[%emt 00:02:28]} h5 {[%clk 00:13:09]}
{[%emt 00:02:00]} 36. Kf2 {[%clk 00:28:48]} {[%emt 00:01:06]} a5 {[%clk
00:10:37]} {[%emt 00:03:02]} 37. Kg1 {[%clk 00:22:40]} {[%emt 00:06:37]} Rac4
{[%clk 00:09:05]} {[%emt 00:02:03]} 38. Rf2 {[%clk 00:20:16]} {[%emt 00:02:53]}
h4 {[%clk 00:05:52]} {[%emt 00:03:44]} 39. g4 {[%clk 00:17:26]} {[%emt
00:03:20]} Rxc3 {[%clk 00:03:38]} {[%emt 00:02:44]} 40. Bxc3 {[%clk 00:17:38]}
{[%emt 00:00:18]} Rxc3 {[%clk 00:04:03]} {[%emt 00:00:04]} 41. Kh2 {[%clk
00:13:56]} {[%emt 00:04:12]} g5 {[%clk 00:04:03]} {[%emt 00:00:30]} 42. Rc1
{[%clk 00:11:40]} {[%emt 00:02:47]} Bxf4+ {[%clk 00:03:33]} {[%emt 00:00:59]}
43. Rxf4 {[%clk 00:11:55]} {[%emt 00:00:15]} Qa2+ {[%clk 00:03:49]} {[%emt
00:00:14]} 44. Kg1 {[%clk 00:11:39]} {[%emt 00:00:45]} Rg3+ {[%clk 00:04:14]}
{[%emt 00:00:06]} 45. Kf1 {[%clk 00:12:03]} {[%emt 00:00:06]} Qg2+ {[%clk
00:04:39]} {[%emt 00:00:05]} 46. Ke1 {[%clk 00:12:25]} {[%emt 00:00:08]} Re3+
{[%clk 00:05:05]} {[%emt 00:00:04]} 47. Qe2 {[%clk 00:12:51]} {[%emt 00:00:05]}
Qxe2# {[%clk 00:05:31]} {[%emt 00:00:04]} 0-1